bitfinex/quotes_BTCUSD_20230906
["timestamp","ask_amount","ask_price","bid_price","bid_amount"]
[1694029286891,3.30336864,25736.0,25735.0,0.018]
[1694029287164,3.02405907,25736.0,25735.0,0.018]
[1694029287373,3.02405907,25736.0,25731.0,0.0001]
[1694029287374,0.04,25734.0,25731.0,0.777363]
[1694029287661,1.82756966,25734.0,25731.0,1.554607]
[1694029287867,0.02295962,25733.0,25731.0,1.554607]
[1694029288902,0.02295962,25733.0,25731.0,2.452979]
[1694029289284,0.02295962,25733.0,25731.0,2.464979]
[1694029289900,0.02295962,25733.0,25731.0,2.452979]
[1694029290073,0.02295962,25733.0,25731.0,2.472979]
[1694029290291,0.02295962,25733.0,25731.0,2.481979]
[1694029290441,0.02295962,25733.0,25731.0,2.472979]
[1694029290887,0.02295962,25733.0,25731.0,2.489979]
[1694029291091,0.02295962,25733.0,25731.0,1.712707]
[1694029291638,0.11623548,25733.0,25731.0,1.712707]
[1694029293023,0.25614928,25733.0,25731.0,1.712707]
[1694029293972,0.09327586,25732.0,25731.0,1.712707]
[1694029294845,0.09327586,25732.0,25731.0,1.692707]
[1694029295182,0.09327586,25732.0,25731.0,1.717707]
[1694029295388,0.32646553,25732.0,25731.0,0.940451]
[1694029295795,0.32646553,25732.0,25731.0,0.1632]
[1694029295998,0.32646553,25732.0,25731.0,0.1462]
[1694029296220,0.32646553,25732.0,25731.0,0.948472]
[1694029296641,0.1399138,25732.0,25731.0,0.948472]
[1694029298211,1.6943978,25732.0,25731.0,0.1712]
[1694029298636,1.6943978,25732.0,25731.0,0.0501]
[1694029299700,3.11094924,25732.0,25731.0,0.0501]
[1694029300350,3.39078063,25732.0,25731.0,0.0501]
[1694029300883,3.41372674,25732.0,25731.0,0.0501]
[1694029301658,3.18053328,25732.0,25731.0,0.0501]
[1694029302217,2.79388801,25732.0,25731.0,0.0501]
[1694029302819,3.02708147,25732.0,25731.0,0.0501]
[1694029304565,3.09272147,25732.0,25731.0,0.0501]
[1694029304769,3.02708147,25732.0,25731.0,0.0501]
[1694029305961,2.79388801,25732.0,25731.0,0.0501]
[1694029306174,3.18053328,25732.0,25731.0,0.0501]
[1694029307608,3.38238265,25732.0,25731.0,0.0501]
[1694029307820,3.42210265,25732.0,25731.0,0.0501]
[1694029308034,3.40512265,25732.0,25731.0,0.0501]
[1694029308250,3.40518265,25732.0,25731.0,0.0501]
[1694029308456,3.40566265,25732.0,25731.0,0.0251]
[1694029308661,3.41364265,25732.0,25731.0,0.0251]
[1694029308875,3.41440265,25732.0,25731.0,0.0271]
[1694029309088,3.42520265,25732.0,25731.0,0.0271]
[1694029309300,3.41502265,25732.0,25731.0,0.0251]
[1694029309516,3.40584265,25732.0,25731.0,0.0251]
[1694029309725,3.63868805,25732.0,25731.0,0.0001]
[1694029309928,3.64656805,25732.0,25731.0,0.0021]
[1694029310142,3.64656805,25732.0,25731.0,0.0001]
[1694029310143,3.88396805,25732.0,25731.0,0.0001]
[1694029310352,4.03486805,25732.0,25731.0,0.0001]
[1694029310576,4.55308805,25732.0,25731.0,0.0041]
[1694029310785,4.55308805,25732.0,25718.0,0.777646]
[1694029310786,0.04,25724.0,25718.0,0.777646]
[1694029310999,0.04,25724.0,25717.0,1.06657699]
[1694029311000,2.453714,25723.0,25717.0,1.06657699]
[1694029311231,2.691914,25723.0,25717.0,2.04189926]
[1694029311437,2.691914,25723.0,25718.0,0.933319]
[1694029311643,3.06196639,25723.0,25718.0,0.777658]
[1694029312049,0.1548,25722.0,25718.0,0.777658]
[1694029312273,1.84786248,25721.0,25717.0,0.25555999]
[1694029312485,1.84786248,25721.0,25717.0,0.09989699]
[1694029312486,2.74654248,25721.0,25717.0,0.09989699]
[1694029312695,0.38664527,25720.0,25717.0,0.09989699]
[1694029312953,0.777635,25719.0,25717.0,0.02389699]
[1694029313366,1.55527,25719.0,25717.0,0.02389699]
[1694029313609,1.55527,25719.0,25717.0,0.01989699]
[1694029313820,1.55527,25719.0,25717.0,0.04089699]
[1694029314033,0.21404436,25718.0,25717.0,0.01989699]
[1694029314247,1.55527,25719.0,25717.0,0.01989699]
[1694029314878,2.33693,25719.0,25717.0,0.06889699]
[1694029315106,0.28748042,25718.0,25717.0,0.06889699]
[1694029315315,2.62047542,25718.0,25717.0,0.06889699]
[1694029315952,2.64283951,25718.0,25717.0,0.06889699]
[1694029316161,3.02948478,25718.0,25717.0,0.06889699]
[1694029316372,3.02948478,25718.0,25717.0,0.04489699]
[1694029316808,3.03148478,25718.0,25717.0,0.04389699]
[1694029317029,3.03348478,25718.0,25717.0,0.06889699]
[1694029317438,2.25581978,25718.0,25717.0,0.06889699]
[1694029317862,1.09150951,25718.0,25717.0,0.06889699]
[1694029318111,0.31384451,25718.0,25717.0,0.06889699]
[1694029319592,1.09150951,25718.0,25717.0,0.06889699]
[1694029321539,0.31384451,25718.0,25717.0,0.06889699]
[1694029321925,1.09150951,25718.0,25717.0,0.06889699]
[1694029322341,0.31384451,25718.0,25717.0,0.06889699]
[1694029322547,1.09150951,25718.0,25717.0,0.06889699]
[1694029323203,0.31384451,25718.0,25717.0,0.06889699]
[1694029323556,1.09150951,25718.0,25717.0,0.06889699]
[1694029326532,0.31384451,25718.0,25717.0,0.06889699]
[1694029328324,1.09150951,25718.0,25717.0,0.06889699]
[1694029328934,1.86917451,25718.0,25717.0,0.06889699]
[1694029329423,1.09150951,25718.0,25717.0,0.06889699]
[1694029330158,1.86917451,25718.0,25717.0,0.06889699]
[1694029331993,2.64683951,25718.0,25717.0,0.06889699]
[1694029332560,1.86917451,25718.0,25717.0,0.06889699]
[1694029332990,1.86917451,25718.0,25717.0,1.19052478]
[1694029334023,2.17501335,25718.0,25717.0,1.19052478]
[1694029334345,2.17501335,25718.0,25717.0,0.06889699]
[1694029334346,3.07377835,25718.0,25717.0,0.06889699]
[1694029335299,3.07177835,25718.0,25717.0,0.04489699]
[1694029335665,3.07377835,25718.0,25717.0,0.06889699]
[1694029335943,3.07177835,25718.0,25717.0,0.04389699]
[1694029336093,3.07377835,25718.0,25717.0,0.06889699]
[1694029336729,3.07377835,25718.0,25717.0,1.19057394]
[1694029337088,3.46042362,25718.0,25717.0,1.19057394]
[1694029337337,3.46042362,25718.0,25717.0,0.06889699]
[1694029338538,3.46042362,25718.0,25717.0,1.19060046]
[1694029345790,3.46042362,25718.0,25717.0,0.04489699]
[1694029345791,3.45842362,25718.0,25717.0,0.04489699]
[1694029345963,3.45642362,25718.0,25717.0,0.01989699]
[1694029346173,3.45742362,25718.0,25717.0,0.03289699]
[1694029346351,3.45642362,25718.0,25717.0,0.01989699]
[1694029346554,3.45742362,25718.0,25717.0,0.03589699]
[1694029346760,3.45742362,25718.0,25717.0,0.04889699]
[1694029346761,3.45842362,25718.0,25717.0,0.04889699]
[1694029347915,3.45742362,25718.0,25717.0,0.03289699]
[1694029348327,3.45842362,25718.0,25717.0,0.04889699]
[1694029350421,1.08950951,25718.0,25717.0,0.14156693]
[1694029350974,1.86717451,25718.0,25717.0,0.14156693]
[1694029351527,2.64483951,25718.0,25717.0,0.14156693]
[1694029352619,2.76593951,25718.0,25717.0,0.14156693]
[1694029354335,2.76593951,25718.0,25717.0,0.28057662]
[1694029354454,2.76593951,25718.0,25717.0,0.14156693]
[1694029354660,2.76593951,25718.0,25717.0,0.64796785]
[1694029354879,2.76593951,25718.0,25717.0,0.28086966]
[1694029355288,2.3379901,25718.0,25717.0,0.28086966]
[1694029355749,3.1156551,25718.0,25717.0,0.18790668]
[1694029355981,3.1156551,25718.0,25717.0,0.64796719]
[1694029356149,2.76593951,25718.0,25717.0,0.64796719]
[1694029356413,0.92312909,25718.0,25717.0,0.64796719]
[1694029356592,0.92312909,25718.0,25717.0,0.83330708]
[1694029356593,0.02436409,25718.0,25717.0,0.83330708]
[1694029356798,0.02436409,25718.0,25717.0,1.61156569]
[1694029357001,0.02436409,25718.0,25717.0,2.24968739]
[1694029357488,0.02436409,25718.0,25717.0,3.07371737]
[1694029357694,0.02436409,25718.0,25717.0,2.9631425]
[1694029358661,0.02336409,25718.0,25717.0,2.9471425]
[1694029358867,0.02436409,25718.0,25717.0,3.20169204]
[1694029359068,0.02336409,25718.0,25717.0,2.9561425]
[1694029359269,0.02536409,25718.0,25717.0,3.20869988]
[1694029359688,0.02536409,25718.0,25717.0,3.3947333]
[1694029360676,0.02536409,25718.0,25717.0,3.16217592]
[1694029361600,0.02536409,25718.0,25717.0,3.11565102]
[1694029362778,0.02536409,25718.0,25717.0,2.60908113]
[1694029363779,0.02536409,25718.0,25717.0,2.51608199]
[1694029365371,0.00036409,25718.0,25717.0,2.51608199]
[1694029365576,0.02011484,25718.0,25717.0,2.51608199]
[1694029368316,0.02011484,25718.0,25717.0,1.73838699]
[1694029368530,0.02011484,25718.0,25717.0,1.61728699]
[1694029373852,0.08108867,25718.0,25717.0,1.61728699]
[1694029374295,0.08108867,25718.0,25717.0,2.39498199]
[1694029375332,0.08108867,25718.0,25717.0,2.51608199]
[1694029379308,0.08108867,25718.0,25717.0,1.73838699]
[1694029379514,0.08108867,25718.0,25717.0,1.61728699]
[1694029379720,0.08108867,25718.0,25717.0,2.39498199]
[1694029385640,0.08108867,25718.0,25717.0,0.06189699]
[1694029385843,1.63641867,25718.0,25717.0,0.06189699]
[1694029386044,2.41408367,25718.0,25717.0,0.06189699]
[1694029386245,1.63641867,25718.0,25717.0,0.06189699]
[1694029386671,0.08108867,25718.0,25717.0,0.06189699]
[1694029386873,0.08108867,25718.0,25717.0,0.83959199]
[1694029387077,0.08108867,25718.0,25717.0,1.61728699]
[1694029387473,0.08108867,25718.0,25717.0,0.06189699]
[1694029387822,1.63641867,25718.0,25717.0,0.06189699]
[1694029390187,0.85875367,25718.0,25717.0,0.06189699]
[1694029390383,0.08108867,25718.0,25717.0,0.83959199]
[1694029390822,0.08108867,25718.0,25717.0,1.61728699]
[1694029391213,0.08108867,25718.0,25717.0,0.06189699]
[1694029392094,0.85875367,25718.0,25717.0,0.06189699]
[1694029393697,0.79777984,25718.0,25717.0,0.06189699]
[1694029394079,3.25098869,25718.0,25717.0,0.06189699]
[1694029394300,3.2976282,25718.0,25717.0,0.06189699]
[1694029394502,3.4841863,25718.0,25717.0,0.06189699]
[1694029394907,3.2976282,25718.0,25717.0,0.06189699]
[1694029396727,3.39095876,25718.0,25717.0,0.06189699]
[1694029401856,3.2510402,25718.0,25717.0,0.06189699]
[1694029402490,3.2976282,25718.0,25717.0,0.06189699]
[1694029402739,3.39094253,25718.0,25717.0,0.06189699]
[1694029402960,3.7775878,25718.0,25717.0,0.06189699]
[1694029403729,3.83857305,25718.0,25717.0,0.06189699]
[1694029406869,3.69865449,25718.0,25717.0,0.06189699]
[1694029407250,3.31200922,25718.0,25717.0,0.06189699]
[1694029408131,0.17441442,25718.0,25717.0,0.06189699]
[1694029408333,0.08110009,25718.0,25717.0,0.83959199]
[1694029408628,0.08110009,25718.0,25717.0,0.06189699]
[1694029408970,0.85876509,25718.0,25717.0,0.06189699]
[1694029409182,0.95207942,25718.0,25717.0,0.06189699]
[1694029409438,1.72974442,25718.0,25717.0,0.06189699]
[1694029410199,1.63643009,25718.0,25717.0,0.06189699]
[1694029410603,1.72974442,25718.0,25717.0,0.06189699]
[1694029410807,1.63643009,25718.0,25717.0,0.06189699]
[1694029411208,0.85876509,25718.0,25717.0,0.06189699]
[1694029412135,1.63643009,25718.0,25717.0,0.06189699]
[1694029413429,0.85876509,25718.0,25717.0,0.06189699]
[1694029414573,1.63643009,25718.0,25717.0,0.06189699]
[1694029417697,1.72974442,25718.0,25717.0,0.06189699]
[1694029418521,2.50740942,25718.0,25717.0,0.06189699]
[1694029421051,2.75376291,25718.0,25717.0,0.06189699]
[1694029421275,3.66697201,25718.0,25717.0,0.06189699]
[1694029422400,3.57365768,25718.0,25717.0,0.06189699]
[1694029422577,3.76021578,25718.0,25717.0,0.06189699]
[1694029424990,3.43373912,25718.0,25717.0,0.06189699]
[1694029425211,3.8537708,25718.0,25717.0,0.06189699]
[1694029425471,3.85377097,25718.0,25717.0,0.06189699]
[1694029426035,3.66709495,25718.0,25717.0,0.06189699]
[1694029426569,3.85378088,25718.0,25717.0,0.06189699]
[1694029426850,3.23377978,25718.0,25717.0,0.06189699]
[1694029427279,3.3737869,25718.0,25717.0,0.06189699]
[1694029427480,3.12743341,25718.0,25717.0,0.06189699]
[1694029429288,2.98742629,25718.0,25717.0,0.06189699]
[1694029433225,3.22078212,25718.0,25717.0,0.06189699]
[1694029433634,3.22091213,25718.0,25717.0,0.06189699]
[1694029433835,2.98748337,25718.0,25717.0,0.06189699]
[1694029435885,1.0455081,25718.0,25717.0,0.06189699]
[1694029436089,0.2678431,25718.0,25717.0,0.83959199]
[1694029437172,0.2678431,25718.0,25717.0,1.61728699]
[1694029438663,0.22119843,25718.0,25717.0,1.61728699]
[1694029438864,0.31459933,25718.0,25717.0,2.39498199]
[1694029439070,0.17450099,25718.0,25717.0,2.39498199]
[1694029439443,0.31459933,25718.0,25717.0,2.39498199]
[1694029439796,0.31459933,25718.0,25717.0,1.61728699]
[1694029443730,0.17450099,25718.0,25717.0,1.61728699]
[1694029443931,0.46954502,25718.0,25717.0,0.83959199]
[1694029444336,0.60964336,25718.0,25717.0,0.06189699]
[1694029445449,0.46954502,25718.0,25717.0,0.06189699]
[1694029447778,3.13881103,25718.0,25717.0,0.06189699]
[1694029447992,3.23215314,25718.0,25717.0,0.06189699]
[1694029448312,2.89588213,25718.0,25717.0,0.06189699]
[1694029449010,3.03597658,25718.0,25717.0,0.06189699]
[1694029451651,2.89588213,25718.0,25717.0,0.06189699]
[1694029453134,3.42262211,25718.0,25717.0,0.06189699]
[1694029453349,3.32921315,25718.0,25717.0,0.06189699]
[1694029453806,3.65487317,25718.0,25717.0,0.06189699]
[1694029456177,3.15589914,25718.0,25717.0,0.06189699]
[1694029456377,3.51293366,25718.0,25717.0,0.06189699]
[1694029456616,3.51257366,25718.0,25717.0,0.06189699]
[1694029456864,3.23251914,25718.0,25717.0,0.06189699]
[1694029457013,3.23245914,25718.0,25717.0,0.06189699]
[1694029457237,3.23257914,25718.0,25717.0,0.06189699]
[1694029457452,3.61892441,25718.0,25717.0,0.06189699]
[1694029457598,3.61886441,25718.0,25717.0,0.06189699]
[1694029457985,3.61874441,25718.0,25717.0,0.06189699]
[1694029458123,3.61880441,25718.0,25717.0,0.06189699]
[1694029458899,3.61862441,25718.0,25717.0,0.06189699]
[1694029459074,3.61688441,25718.0,25717.0,0.06189699]
[1694029459275,3.61748441,25718.0,25717.0,0.06189699]
[1694029459675,4.16436538,25718.0,25717.0,0.06189699]
[1694029459887,4.19628538,25718.0,25717.0,0.06189699]
[1694029460048,4.19562538,25718.0,25717.0,0.06189699]
[1694029460235,4.61438538,25718.0,25717.0,0.06189699]
[1694029460439,4.61828538,25718.0,25717.0,0.06189699]
[1694029460643,4.61714538,25718.0,25717.0,0.06189699]
[1694029460877,4.86234538,25718.0,25717.0,0.06189699]
[1694029461080,5.16198538,25718.0,25717.0,0.06189699]
[1694029461283,5.17110538,25718.0,25717.0,0.06189699]
[1694029461492,5.22940238,25718.0,25717.0,0.06189699]
[1694029461699,5.22748238,25718.0,25717.0,0.06189699]
[1694029461907,5.36376649,25718.0,25717.0,0.06189699]
[1694029462108,5.35176649,25718.0,25717.0,0.06189699]
[1694029462312,0.06,25716.0,25711.0,0.02603852]
[1694029462532,0.21443309,25713.0,25711.0,0.02603852]
[1694029462739,0.777846,25712.0,25711.0,0.02603852]
[1694029462938,1.555692,25712.0,25711.0,0.02603852]
[1694029463569,1.555692,25712.0,25711.0,0.07403852]
[1694029463778,1.61668626,25712.0,25711.0,0.05003852]
[1694029463986,1.61868626,25712.0,25711.0,0.05003852]
[1694029464186,1.62068626,25712.0,25711.0,0.07403852]
[1694029464407,2.78517753,25712.0,25711.0,0.07403852]
[1694029466077,2.80456012,25712.0,25711.0,0.07403852]
[1694029467480,2.80456012,25712.0,25711.0,3.0700729]
[1694029467481,0.08437685,25712.0,25711.0,3.0700729]
[1694029467693,0.08437685,25712.0,25711.0,2.93841479]
[1694029467694,0.06499426,25712.0,25711.0,2.93841479]
[1694029468967,1.64873209,25717.0,25711.0,3.34751479]
[1694029469175,1.01098373,25719.0,25716.0,0.1211]
[1694029469176,0.33656142,25719.0,25716.0,0.1211]
[1694029469380,0.33656142,25719.0,25717.0,1.71004811]
[1694029469381,0.24322833,25719.0,25717.0,1.71004811]
[1694029469582,0.29333126,25718.0,25717.0,1.71004811]
[1694029469789,0.29333126,25718.0,25717.0,1.55539]
[1694029470234,0.29333126,25718.0,25717.0,0.777695]
[1694029470865,0.29733126,25718.0,25717.0,0.815695]
[1694029471521,0.39066435,25718.0,25717.0,0.815695]
[1694029472127,0.39066435,25718.0,25717.0,1.59339]
[1694029472553,0.39066435,25718.0,25717.0,1.47888646]
[1694029473177,0.39066435,25718.0,25717.0,0.70119146]
[1694029473311,0.45164265,25718.0,25717.0,0.70119146]
[1694029473973,0.45164265,25718.0,25717.0,1.47888646]
[1694029474823,0.45164265,25718.0,25717.0,0.70119146]
[1694029475215,0.35830956,25718.0,25717.0,1.47888646]
[1694029478190,0.35830956,25718.0,25717.0,0.70119146]
[1694029478571,0.35830956,25718.0,25717.0,1.47888646]
[1694029483080,0.35830956,25718.0,25717.0,2.25658146]
[1694029483253,0.35830956,25718.0,25717.0,1.47888646]
[1694029483896,0.45154965,25718.0,25717.0,1.47888646]
[1694029484085,0.35830956,25718.0,25717.0,1.47888646]
[1694029486224,0.0649783,25718.0,25717.0,2.37768146]
[1694029487523,0.0649783,25718.0,25717.0,2.76432673]
[1694029487902,0.004,25718.0,25717.0,2.78732673]
[1694029496796,0.004,25718.0,25714.0,0.155689]
[1694029496797,1.28941027,25718.0,25714.0,0.155689]
[1694029496998,1.28941027,25718.0,25711.0,0.02603852]
[1694029496999,0.04,25714.0,25711.0,0.02603852]
[1694029497191,0.1211,25712.0,25711.0,0.02603852]
[1694029497576,0.1211,25712.0,25707.0,0.85677411]
[1694029497577,0.1211,25712.0,25707.0,0.68004921]
[1694029497779,0.898946,25712.0,25711.0,0.03888]
[1694029497981,1.676792,25712.0,25711.0,0.03888]
[1694029498333,0.898946,25712.0,25711.0,0.03888]
[1694029498535,0.1211,25712.0,25711.0,0.03888]
[1694029498808,0.1231,25712.0,25711.0,0.03888]
[1694029499001,0.002,25712.0,25711.0,0.03888]
[1694029499384,0.004,25712.0,25711.0,0.05588]
[1694029500143,0.002,25712.0,25711.0,0.05588]
[1694029500395,0.004,25712.0,25711.0,2.354631]
[1694029500598,0.004,25712.0,25711.0,2.514611]
[1694029501222,0.004,25712.0,25711.0,1.736734]
[1694029501426,0.004,25712.0,25711.0,1.89244]
[1694029501630,0.004,25712.0,25711.0,1.114563]
[1694029502041,0.004,25712.0,25711.0,1.89244]
[1694029502459,0.004,25712.0,25711.0,2.670317]
[1694029503125,0.004,25712.0,25711.0,1.89244]
[1694029504213,0.004,25712.0,25711.0,1.77790974]
[1694029505484,0.004,25712.0,25711.0,2.55578674]
[1694029505729,0.004,25712.0,25711.0,4.09865012]
[1694029505912,0.004,25712.0,25711.0,3.94375201]
[1694029506151,0.004,25712.0,25711.0,3.93493201]
[1694029506354,0.004,25712.0,25711.0,3.94183201]
[1694029506567,0.004,25712.0,25711.0,3.93961201]
[1694029506785,0.004,25712.0,25711.0,3.93457201]
[1694029506993,0.004,25712.0,25711.0,3.92167201]
[1694029507192,0.004,25712.0,25711.0,3.92131201]
[1694029507399,0.004,25712.0,25711.0,3.85453201]
[1694029508260,0.004,25712.0,25711.0,3.88548319]
[1694029512382,0.004,25712.0,25711.0,3.89725022]
[1694029514414,0.004,25712.0,25711.0,3.48815022]
[1694029515339,0.004,25712.0,25711.0,3.89725022]
[1694029516036,0.004,25712.0,25711.0,3.48815022]
[1694029517797,0.004,25712.0,25711.0,3.89725022]
[1694029548233,0.004,25712.0,25711.0,3.99013307]
[1694029560349,0.004,25712.0,25711.0,3.58103307]
[1694029560555,0.004,25712.0,25711.0,3.48815022]
[1694029560810,0.004,25712.0,25711.0,3.40815022]
[1694029561079,0.01583893,25712.0,25711.0,3.38815022]
[1694029561311,0.01583893,25712.0,25711.0,3.30815022]
[1694029561522,0.01583893,25712.0,25711.0,3.38815022]
[1694029561958,0.01583893,25712.0,25711.0,3.40815022]
[1694029562371,0.01583893,25712.0,25711.0,1.98776092]
[1694029562592,0.01583893,25712.0,25711.0,1.68776092]
[1694029562807,0.07022702,25712.0,25711.0,1.68776092]
[1694029564066,0.07022702,25712.0,25711.0,2.46563792]
[1694029564480,0.01583893,25712.0,25711.0,2.46563792]
[1694029564692,0.01583893,25712.0,25711.0,0.06983118]
[1694029565235,0.34408818,25712.0,25711.0,0.06983118]
[1694029565498,0.25084809,25712.0,25711.0,0.06983118]
[1694029567492,1.80654009,25712.0,25711.0,0.06983118]
[1694029567742,0.57745075,25712.0,25711.0,0.06983118]
[1694029567953,0.34408818,25712.0,25711.0,0.06983118]
[1694029568809,0.25084809,25712.0,25711.0,0.25983118]
[1694029570871,1.02869409,25712.0,25711.0,0.25983118]
[1694029571299,1.80654009,25712.0,25711.0,0.25983118]
[1694029571505,2.13314345,25712.0,25711.0,0.25983118]
[1694029572129,3.00422954,25712.0,25711.0,0.25983118]
[1694029572333,2.91098945,25712.0,25711.0,0.25983118]
[1694029576247,3.03208945,25712.0,25711.0,0.25983118]
[1694029576449,2.79708029,25712.0,25711.0,0.25983118]
[1694029576593,3.18372556,25712.0,25711.0,0.25983118]
[1694029576815,3.41296556,25712.0,25711.0,0.25983118]
[1694029577008,3.40930556,25712.0,25711.0,0.25983118]
[1694029577263,3.34372556,25712.0,25711.0,0.25983118]
[1694029578046,3.73054556,25712.0,25711.0,0.25983118]
[1694029578304,3.72484556,25712.0,25711.0,0.25983118]
[1694029578438,3.72292556,25712.0,25711.0,0.25983118]
[1694029578641,3.72298556,25712.0,25711.0,0.25983118]
[1694029578909,3.72280556,25712.0,25711.0,0.25983118]
[1694029579087,3.72286556,25712.0,25711.0,0.25983118]
[1694029579289,3.72334556,25712.0,25711.0,0.25983118]
[1694029579488,3.72100556,25712.0,25711.0,0.25983118]
[1694029579689,3.72094556,25712.0,25711.0,0.25983118]
[1694029579904,3.71938556,25712.0,25711.0,0.25983118]
[1694029580099,3.71860556,25712.0,25711.0,0.25983118]
[1694029580297,3.71884556,25712.0,25711.0,0.25983118]
[1694029580504,3.71860556,25712.0,25711.0,0.25983118]
[1694029580657,3.71848556,25712.0,25711.0,0.25983118]
[1694029580859,3.72208556,25712.0,25711.0,0.25983118]
[1694029581064,3.72106556,25712.0,25711.0,0.25983118]
[1694029581280,3.72022556,25712.0,25711.0,0.25983118]
[1694029581642,3.71920556,25712.0,25711.0,0.25983118]
[1694029581856,3.71872556,25712.0,25711.0,0.25983118]
[1694029582060,3.71890556,25712.0,25711.0,0.25983118]
[1694029582261,3.71896556,25712.0,25711.0,0.25983118]
[1694029582811,3.71902556,25712.0,25711.0,0.25983118]
[1694029583039,3.71824556,25712.0,25711.0,0.25983118]
[1694029583238,3.71830556,25712.0,25711.0,0.25983118]
[1694029583435,3.71866556,25712.0,25711.0,0.25983118]
[1694029583654,3.71878556,25712.0,25711.0,0.25983118]
[1694029583866,3.71938556,25712.0,25711.0,0.25983118]
[1694029584008,3.71956556,25712.0,25711.0,0.25983118]
[1694029584204,3.71968556,25712.0,25711.0,0.25983118]
[1694029584431,3.71974556,25712.0,25711.0,0.25983118]
[1694029584626,3.71980556,25712.0,25711.0,0.25983118]
[1694029584831,3.71998556,25712.0,25711.0,0.25983118]
[1694029585042,3.72028556,25712.0,25711.0,0.25983118]
[1694029585289,3.72034556,25712.0,25711.0,0.25983118]
[1694029585514,3.72010556,25712.0,25711.0,0.25983118]
[1694029585720,3.72004556,25712.0,25711.0,0.25983118]
[1694029585890,3.72010556,25712.0,25711.0,0.25983118]
[1694029586095,3.71998556,25712.0,25711.0,0.25983118]
[1694029586297,3.72046556,25712.0,25711.0,0.25983118]
[1694029586514,3.72034556,25712.0,25711.0,0.25983118]
[1694029586741,3.72040556,25712.0,25711.0,0.25983118]
[1694029587144,3.72046556,25712.0,25711.0,0.25983118]
[1694029587499,3.72052556,25712.0,25711.0,0.25983118]
[1694029587911,3.72058556,25712.0,25711.0,0.25983118]
[1694029588123,3.72040556,25712.0,25711.0,0.25983118]
[1694029588523,3.72046556,25712.0,25711.0,0.25983118]
[1694029588901,3.71998556,25712.0,25711.0,0.25983118]
[1694029589059,3.72004556,25712.0,25711.0,0.25983118]
[1694029589461,3.72112556,25712.0,25711.0,0.25983118]
[1694029589686,3.72004556,25712.0,25711.0,0.25983118]
[1694029589884,3.72016556,25712.0,25711.0,0.25983118]
[1694029590043,3.71968556,25712.0,25711.0,0.25983118]
[1694029590408,3.71986556,25712.0,25711.0,0.25983118]
[1694029590739,3.72052556,25712.0,25711.0,0.25983118]
[1694029590948,3.72046556,25712.0,25711.0,0.25983118]
[1694029591120,3.72064556,25712.0,25711.0,0.25983118]
[1694029591615,3.72088556,25712.0,25711.0,0.25983118]
[1694029591817,3.72058556,25712.0,25711.0,0.25983118]
[1694029591996,3.72088556,25712.0,25711.0,0.25983118]
[1694029592448,3.72220556,25712.0,25711.0,0.25983118]
[1694029592658,3.72250556,25712.0,25711.0,0.25983118]
[1694029592861,3.72154556,25712.0,25711.0,0.25983118]
[1694029593066,3.72124556,25712.0,25711.0,0.25983118]
[1694029593483,3.72136556,25712.0,25711.0,0.25983118]
[1694029593694,4.13034556,25712.0,25711.0,0.25983118]
[1694029593867,4.28252556,25712.0,25711.0,0.25983118]
[1694029594001,4.28240556,25712.0,25711.0,0.25983118]
[1694029594209,4.28210556,25712.0,25711.0,0.25983118]
[1694029594411,4.28228556,25712.0,25711.0,0.25983118]
[1694029594627,4.27628556,25712.0,25711.0,0.25983118]
[1694029594832,3.3890022,25712.0,25711.0,0.22888]
[1694029595043,3.3171222,25712.0,25711.0,0.22888]
[1694029596099,3.31611728,25712.0,25711.0,0.22888]
[1694029609523,3.57353623,25712.0,25711.0,0.22888]
[1694029609733,1.11889823,25712.0,25711.0,0.22888]
[1694029609942,1.59674423,25712.0,25711.0,0.22888]
[1694029610390,2.37459023,25712.0,25711.0,0.22888]
[1694029610599,1.59674423,25712.0,25711.0,0.22888]
[1694029610839,0.79889823,25712.0,25711.0,0.22888]
[1694029611069,0.73889823,25712.0,25711.0,0.22888]
[1694029611279,0.79889823,25712.0,25711.0,0.22888]
[1694029611521,0.27225296,25712.0,25711.0,0.22888]
[1694029611761,0.01483401,25712.0,25711.0,2.06039211]
[1694029611967,0.01483401,25712.0,25711.0,2.683611]
[1694029614113,0.00299508,25712.0,25711.0,2.683611]
[1694029615078,0.0639853,25712.0,25711.0,2.683611]
[1694029618498,0.29797431,25712.0,25711.0,2.683611]
[1694029619059,0.29797431,25712.0,25711.0,1.905734]
[1694029622821,0.29797431,25712.0,25711.0,2.683611]
[1694029624960,0.0639853,25712.0,25711.0,2.683611]
[1694029626217,0.0639853,25712.0,25711.0,2.839317]
[1694029626838,0.0639853,25712.0,25711.0,3.24896227]
[1694029630642,0.00299508,25712.0,25711.0,3.26896227]
[1694029630849,0.00299508,25712.0,25711.0,3.62896227]
[1694029634312,0.00299508,25712.0,25711.0,3.54896227]
[1694029634586,0.27849389,25712.0,25711.0,2.839317]
[1694029634861,0.00299508,25712.0,25711.0,2.839317]
[1694029636788,0.00299508,25712.0,25711.0,4.02383927]
[1694029637049,0.00299508,25712.0,25711.0,4.32383927]
[1694029637311,0.00299508,25712.0,25711.0,4.34683927]
[1694029638827,0.00299508,25712.0,25711.0,5.93764867]
[1694029639319,0.00299508,25712.0,25711.0,6.03039849]
[1694029639570,0.06097947,25717.0,25714.0,0.04]
[1694029639777,0.06097947,25717.0,25715.0,2.09681538]
[1694029639979,0.06097947,25717.0,25715.0,4.43008338]
[1694029640188,0.06097947,25717.0,25715.0,4.27542527]
[1694029640815,0.06397947,25717.0,25715.0,4.27542527]
[1694029641225,0.06297947,25717.0,25715.0,4.27942527]
[1694029642241,0.06297947,25717.0,25716.0,0.1211]
[1694029642461,0.06297947,25717.0,25716.0,2.84092027]
[1694029642638,0.06597947,25717.0,25716.0,2.84092027]
[1694029643070,0.06297947,25717.0,25716.0,2.84092027]
[1694029643197,0.06597947,25717.0,25716.0,2.84392027]
[1694029643838,0.06397947,25717.0,25716.0,2.84392027]
[1694029643997,0.06597947,25717.0,25716.0,2.84692027]
[1694029650760,0.06597947,25717.0,25716.0,4.08413394]
[1694029650761,0.005,25717.0,25716.0,4.08413394]
[1694029651403,0.005,25717.0,25716.0,5.00313453]
[1694029651603,0.3913,25721.0,25716.0,4.91046577]
[1694029651808,0.2339,25721.0,25720.0,0.1211]
[1694029652043,0.06096688,25722.0,25720.0,3.231516]
[1694029652253,0.06096688,25722.0,25721.0,0.1211]
[1694029652460,0.06096688,25722.0,25721.0,2.453822]
[1694029653482,0.08196688,25722.0,25721.0,2.454822]
[1694029654218,0.08196688,25722.0,25721.0,2.455822]
[1694029654219,0.10396688,25722.0,25721.0,2.455822]
[1694029659050,0.37617388,25722.0,25721.0,0.900674]
[1694029659386,0.37617388,25722.0,25721.0,0.779574]
[1694029659587,0.37617388,25722.0,25721.0,1.557148]
[1694029660323,0.37617388,25722.0,25721.0,0.779574]